fUSD/lending_fUSD_20251212
["ID","MTS","AMOUNT","RATE_DAILY","PERIOD"]
[398379365,1765559527267,-500.0,0.00040273,30]
[398379367,1765559527314,-889.28,0.00040273,30]
[398379368,1765559527356,-1055.35,0.00040273,30]
[398379370,1765559527397,-500.0,0.00040273,30]
[398379372,1765559527438,-768.16,0.00040273,30]
[398379373,1765559527480,-796.43,0.00040273,30]
[398379375,1765559527519,-500.0,0.00040273,30]
[398379377,1765559527559,-500.0,0.00040273,30]
[398379378,1765559527601,-500.0,0.00040273,30]
[398379380,1765559527639,-500.0,0.00040273,30]
[398379382,1765559527679,-4057.42,0.00040273,30]
[398379383,1765559527720,-519.19,0.00040273,30]
[398379385,1765559527759,-500.0,0.00040273,30]
[398379387,1765559527798,-614.09,0.00040273,30]
[398379388,1765559527838,-500.0,0.00040273,30]
[398379390,1765559527881,-500.0,0.00040273,30]
[398379391,1765559527931,-1274.5,0.00040273,30]
[398379393,1765559527986,-667.67,0.00040273,30]
[398379394,1765559528033,-500.0,0.00040273,30]
[398379395,1765559528074,-500.0,0.00040273,30]
[398379397,1765559528116,-1168.93,0.00040273,30]
[398379398,1765559528160,-500.0,0.00040273,30]
[398379400,1765559528201,-500.0,0.00040273,30]
[398379401,1765559528244,-500.0,0.00040273,30]
[398379403,1765559528287,-500.0,0.00040273,30]
[398379404,1765559528330,-535.37,0.00040273,30]
[398379406,1765559528374,-500.0,0.00040273,30]
[398379408,1765559528418,-500.0,0.00040273,30]
[398379409,1765559528462,-1327.99,0.00040273,30]
[398379411,1765559528505,-500.0,0.00040273,30]
[398379412,1765559528549,-500.0,0.00040273,30]
[398379414,1765559528594,-500.0,0.00040273,30]
[398379415,1765559528642,-500.0,0.00040273,30]
[398379416,1765559528688,-500.0,0.00040273,30]
[398379417,1765559528736,-500.0,0.00040273,30]
[398379418,1765559528783,-1465.36,0.00040273,30]
[398379419,1765559528830,-599.01,0.00040273,30]
[398379421,1765559528874,-500.0,0.00040273,30]
[398379426,1765559529162,-500.0,0.00040273,30]
[398379428,1765559529206,-2472.22,0.00040273,30]
[398379429,1765559529253,-500.0,0.00040273,30]
[398379431,1765559529296,-500.0,0.00040273,30]
[398379433,1765559529337,-500.0,0.00040273,30]
[398379434,1765559529380,-500.0,0.00040273,30]
[398379435,1765559529424,-518.51,0.00040273,30]
[398379436,1765559529466,-500.0,0.00040273,30]
[398379437,1765559529513,-1000.0,0.000403,60]
[398379438,1765559529556,-2000.0,0.000405,60]
[398379439,1765559529598,-8551.12289222,0.000405,120]
[398379440,1765559529639,-570.75,0.00040507,30]
[398379441,1765559529680,-570.75,0.00040507,30]
[398379442,1765559529721,-500.0,0.00040547,30]
[398379443,1765559529758,-168.15043,0.00040547,30]
[398379444,1765559529796,-621.981678,0.00040547,30]
[398379445,1765559529836,-152.513699,0.00040547,30]
[398379446,1765559529876,-1302.622781,0.00040547,30]
[398379447,1765559529918,-1178.321875,0.00040547,30]
[398379448,1765559529966,-218.449425,0.00040547,30]
[398379449,1765559530008,-655.348273,0.00040547,30]
[398379450,1765559530053,-500.0,0.00040547,30]
[398379451,1765559530094,-500.0,0.00040547,30]
[398379452,1765559530141,-500.0,0.00040547,30]
[398379453,1765559530183,-500.0,0.00040547,30]
[398379454,1765559530223,-644.97,0.00040547,30]
[398379455,1765559530263,-500.0,0.00040547,30]
[398379456,1765559530302,-553.81,0.00040547,30]
[398379457,1765559530342,-507.31,0.00040547,30]
[398379458,1765559530382,-500.0,0.00040547,30]
[398379459,1765559530421,-500.0,0.00040547,30]
[398379460,1765559530464,-500.0,0.00040547,30]
[398379461,1765559530504,-500.0,0.00040547,30]
[398379462,1765559530544,-573.01,0.00040547,30]
[398379463,1765559530592,-500.0,0.00040547,30]
[398379464,1765559530638,-500.0,0.00040547,30]
[398379465,1765559530678,-500.0,0.00040547,30]
[398379466,1765559530716,-500.0,0.00040547,30]
[398379467,1765559530755,-568.24,0.00040547,30]
[398379468,1765559530796,-500.0,0.00040547,30]
[398379469,1765559530838,-500.0,0.00040547,30]
[398379470,1765559530879,-500.0,0.00040547,30]
[398379471,1765559530921,-500.0,0.00040547,30]
[398379472,1765559530964,-500.0,0.00040547,30]
[398379473,1765559531007,-519.58,0.00040547,30]
[398379474,1765559531050,-500.0,0.00040547,30]
[398379475,1765559531091,-500.0,0.00040547,30]
[398379476,1765559531135,-500.0,0.00040547,30]
[398379477,1765559531176,-500.0,0.00040547,30]
[398379478,1765559531217,-500.0,0.00040547,30]
[398379479,1765559531258,-500.0,0.00040547,30]
[398379480,1765559531298,-662.58,0.00040547,30]
[398379481,1765559531339,-500.0,0.00040547,30]
[398379482,1765559531381,-541.03,0.00040547,30]
[398379483,1765559531422,-500.0,0.00040547,30]
[398379484,1765559531464,-500.0,0.00040547,30]
[398379485,1765559531504,-500.0,0.00040547,30]
[398379486,1765559531545,-500.0,0.00040547,30]
[398379487,1765559531585,-542.23,0.00040547,30]
[398379488,1765559531626,-500.0,0.00040547,30]
[398379489,1765559531667,-500.0,0.00040547,30]
[398379490,1765559531704,-500.0,0.00040547,30]
[398379491,1765559531744,-500.0,0.00040547,30]
[398379492,1765559531781,-624.71,0.00040547,30]
[398379493,1765559531820,-500.0,0.00040547,30]
[398379494,1765559531857,-500.0,0.00040547,30]
[398379495,1765559531903,-500.0,0.00040547,30]
[398379496,1765559531943,-500.0,0.00040547,30]
[398379497,1765559531983,-500.0,0.00040547,30]
[398379498,1765559532026,-500.0,0.00040547,30]
[398379499,1765559532067,-500.0,0.00040547,30]
[398379500,1765559532109,-629.93476286,0.00040547,30]
[398379501,1765559532153,-500.0,0.00040547,30]
[398379502,1765559532197,-228.41179694,0.00040547,30]
[398379503,1765559532238,-500.0,0.00040547,30]
[398379504,1765559532278,-500.0,0.00040547,30]
[398379505,1765559532319,-500.0,0.00040547,30]
[398379506,1765559532359,-500.0,0.00040547,30]
[398379507,1765559532397,-500.0,0.00040547,30]
[398379508,1765559532436,-505.69,0.00040547,30]
[398379509,1765559532473,-500.0,0.00040547,30]
[398379510,1765559532509,-500.0,0.00040547,30]
[398379511,1765559532547,-500.0,0.00040547,30]
[398379512,1765559532585,-500.0,0.00040547,30]
[398379513,1765559532623,-500.0,0.00040547,30]
[398379514,1765559532660,-500.0,0.00040547,30]
[398379515,1765559532698,-500.0,0.00040547,30]
[398379516,1765559532735,-500.0,0.00040547,30]
[398379517,1765559532772,-500.0,0.00040547,30]
[398379518,1765559532808,-500.0,0.00040547,30]
[398379519,1765559532846,-508.3388855,0.00040547,30]
[398379520,1765559532885,-1153.52,0.00040547,30]
[398379521,1765559532921,-500.0,0.00040547,30]
[398379522,1765559532962,-854.82,0.00040547,30]
[398379523,1765559533003,-666.07,0.00040547,30]
[398379524,1765559533311,-500.0,0.00040547,30]
[398379525,1765559533357,-502.66,0.00040547,30]
[398379526,1765559533403,-500.0,0.00040547,30]
[398379527,1765559533450,-1981.87413775,0.00040547,30]
[398379528,1765559533490,-500.0,0.00040547,30]
[398379529,1765559533531,-444.71060553,0.00040547,30]
[398379530,1765559533570,-500.0,0.00040547,30]
[398379531,1765559533611,-500.0,0.00040547,30]
[398379532,1765559533652,-500.0,0.00040547,30]
[398379533,1765559533691,-500.0,0.00040547,30]
[398379534,1765559533731,-500.0,0.00040547,30]
[398379535,1765559533770,-944.86,0.00040547,30]
[398379536,1765559533816,-599.5,0.00040547,30]
[398379537,1765559533855,-500.0,0.00040547,30]
[398379538,1765559533895,-500.0,0.00040547,30]
[398379539,1765559533933,-500.0,0.00040547,30]
[398379540,1765559533973,-500.0,0.00040547,30]
[398379541,1765559534013,-500.0,0.00040547,30]
[398379542,1765559534051,-500.0,0.00040547,30]
[398379543,1765559534089,-651.78,0.00040547,30]
[398379544,1765559534128,-500.0,0.00040547,30]
[398379545,1765559534168,-500.0,0.00040547,30]
[398379546,1765559534209,-500.0,0.00040547,30]
[398379547,1765559534249,-500.0,0.00040547,30]
[398379548,1765559534290,-500.0,0.00040547,30]
[398379549,1765559534332,-500.0,0.00040547,30]
[398379550,1765559534376,-767.46,0.00040547,30]
[398379551,1765559534421,-500.0,0.00040547,30]
[398379552,1765559534467,-500.0,0.00040547,30]
[398379553,1765559534509,-500.0,0.00040547,30]
[398379554,1765559534551,-500.0,0.00040547,30]
[398379555,1765559534593,-500.0,0.00040547,30]
[398379556,1765559534640,-500.0,0.00040547,30]
[398379557,1765559534683,-500.0,0.00040547,30]
[398379558,1765559534727,-215.40224945,0.00040547,30]
[398379559,1765559534783,-500.0,0.00040547,30]
[398379560,1765559534824,-500.0,0.00040547,30]
[398379561,1765559534864,-500.0,0.00040547,30]
[398379562,1765559534903,-500.0,0.00040547,30]
[398379563,1765559534942,-500.0,0.00040547,30]
[398379564,1765559534981,-500.0,0.00040547,30]
[398379565,1765559535021,-500.0,0.00040547,30]
[398379566,1765559535062,-456.79533571,0.00040547,30]
[398379567,1765559546872,-164.77840951,0.00015692,2]
[398379568,1765559546896,-281.0,0.00015692,2]
[398379569,1765559546917,-1200.0,0.00015791,2]
[398379570,1765559546941,-300.0,0.00015791,2]
[398379571,1765559546963,-344.61016191,0.00015792,2]
[398379572,1765559546987,-343.87527684,0.00015792,2]
[398379573,1765559547009,-5250.73615174,0.00015792,2]
[398379892,1765559579653,440.6,0.00013699,2]
[398379931,1765559581750,263.0,0.00013699,2]
[398379951,1765559582682,1000.0,0.00015118,2]
[398379980,1765559584457,-906.0,0.0001579,2]
[398379982,1765559584468,-9680.22228626,0.0001579,2]
[398379983,1765559584480,-51458.40370625,0.0001579,2]
[398379984,1765559584491,-15227.52676807,0.0001579,2]
[398379985,1765559584503,-1421.97658883,0.0001579,2]
[398379986,1765559584514,-1709.26755437,0.0001579,2]
[398379988,1765559584525,-560.95382863,0.0001579,2]
[398379989,1765559584536,-717.92687088,0.0001579,2]
[398379990,1765559584547,-14488.90228201,0.0001579,2]
[398379991,1765559584559,-727.65809693,0.0001579,2]
[398379992,1765559584570,-795.10986863,0.0001579,2]
[398379994,1765559584582,-669.01695779,0.0001579,2]
[398379995,1765559584593,-4664.0102271,0.0001579,2]
[398380001,1765559584862,-369.32,0.0001579,2]
[398380002,1765559584874,-753.25136983,0.0001579,2]
[398380003,1765559584885,-1462.47695,0.0001579,2]
[398380004,1765559584900,-1680.96,0.0001579,2]
[398380005,1765559584911,-3039.84169753,0.0001579,2]
[398380007,1765559584922,-2418.07525,0.0001579,2]
[398380008,1765559584933,-9401.64,0.0001579,2]
[398380011,1765559585096,-10812.1337231,0.0001579,2]
[398380013,1765559585107,-2663.2606002,0.0001579,2]
[398380014,1765559585119,-3212.84144173,0.0001579,2]
[398380016,1765559585168,-5820.965417,0.0001579,2]
[398380017,1765559585184,-2063.67392071,0.0001579,2]
[398380021,1765559585379,-436.25377848,0.0001579,2]
[398380022,1765559585391,-612838.33081567,0.0001579,2]
[398380023,1765559585401,-1586.604,0.00015792,2]
[398380025,1765559585411,-269.7213,0.00015792,2]
[398380026,1765559585420,-200.0,0.00015883,2]
[398380027,1765559585429,-10767.57234228,0.00015889,2]
[398380028,1765559585439,-500.0,0.00015891,2]
[398380029,1765559585450,-500.0,0.00015891,2]
[398380030,1765559585459,-500.0,0.00015891,2]
[398380032,1765559585468,-485.52312637,0.00015891,2]
[398380033,1765559585478,-280.2721,0.00015892,2]
[398380034,1765559585487,-1600.0,0.00016005,2]
[398380035,1765559585497,-166.56,0.00016046,2]
[398380036,1765559585506,-500.0,0.00016091,2]
[398380037,1765559585516,-506.09206684,0.00016091,2]
[398380039,1765559585525,-502.97441919,0.00016091,2]
[398380040,1765559585535,-500.0,0.00016091,2]
[398380041,1765559585545,-500.0,0.00016091,2]
[398380042,1765559585555,-500.0,0.00016091,2]
[398380043,1765559585565,-500.0,0.00016124,2]
[398380044,1765559585574,-200.0,0.00016464,2]
[398380046,1765559585584,-500.0,0.00016473,2]
[398380047,1765559585593,-500.0,0.00016699,2]
[398380048,1765559585603,-168.26617795,0.00016774,2]
[398380049,1765559585612,-500.0,0.00016921,2]
[398380050,1765559585621,-499.99,0.00016922,2]
[398380051,1765559585630,-4999.99,0.00016922,2]
[398380053,1765559585641,-166.56,0.00016928,2]
[398380054,1765559585651,-500.0,0.00016999,2]
[398380055,1765559585660,-500.0,0.00016999,2]
[398380056,1765559585673,-250.0,0.00017,2]
[398380057,1765559585683,-1000.0,0.00017007,2]
[398380059,1765559585692,-1000.0,0.00017021,2]
[398380060,1765559585702,-168.26617795,0.00017337,2]
[398380061,1765559585711,-1620.0,0.00017362,2]
[398380062,1765559585720,-150.71,0.00017585,2]
[398380063,1765559585730,-185.037,0.00017585,2]
[398380064,1765559585739,-151.077,0.00017585,2]
[398380065,1765559585748,-150.0,0.00017585,2]
[398380066,1765559585757,-150.0,0.00017585,2]
[398380067,1765559585766,-150.0,0.00017585,2]
[398380068,1765559585775,-150.0,0.00017585,2]
[398380069,1765559585784,-150.124,0.00017585,2]
[398380071,1765559585793,-151.0,0.00017585,2]
[398380072,1765559585802,-1323.0,0.00017585,2]
[398380073,1765559585814,-3449.0,0.00017585,2]
[398380074,1765559585823,-1606.0,0.00017585,2]
[398380075,1765559585833,-617.068,0.00017585,2]
[398380076,1765559585843,-647.81,0.00017585,2]
[398380078,1765559585855,-1260.9,0.00017585,2]
[398380079,1765559585865,-851.95827054,0.0001764,2]
[398380080,1765559585874,-150.0,0.00017699,2]
[398380081,1765559585883,-150.0,0.00017699,2]
[398380082,1765559585898,-150.0,0.00017699,2]
[398380083,1765559585907,-500.0,0.00017699,2]
[398380085,1765559585916,-166.56,0.00017811,2]
[398380086,1765559585926,-150.0,0.00017836,2]
[398380087,1765559585936,-185.01608608,0.00017836,2]
[398380088,1765559585950,-500.0,0.00017836,2]
[398380089,1765559585960,-2000.0,0.00017856,2]
[398380090,1765559585969,-200.0,0.00017856,2]
[398380092,1765559585984,-2437.73446444,0.000179,2]
[398380093,1765559585994,-168.26617795,0.000179,2]
[398380094,1765559586004,-176.39513176,0.00017973,2]
[398380095,1765559586014,-500.0,0.00017973,2]
[398380096,1765559586025,-500.0,0.00017973,2]
[398380097,1765559586034,-193.16218592,0.00017973,2]
[398380098,1765559586044,-500.0,0.00017973,2]
[398380100,1765559586054,-13571.8522122,0.00017999,2]
[398380101,1765559586063,-11720.8129226,0.00017999,2]
[398380102,1765559586073,-97634.5169092,0.00017999,2]
[398380103,1765559586083,-1057.3651858,0.00017999,2]
[398380104,1765559586093,-300.0,0.00017999,2]
[398380105,1765559586104,-29825.87519,0.00017999,2]
[398380107,1765559586114,-809595.73338575,0.00018,2]
[398380110,1765559586282,-500.0,0.00015891,2]
[398380111,1765559586293,-500.0,0.00015891,2]
[398380113,1765559586302,-500.0,0.00015891,2]
[398380114,1765559586311,-500.0,0.00016437,2]
[398380115,1765559586321,-500.0,0.00017899,2]
[398380116,1765559586331,-500.0,0.00017999,2]
[398380117,1765559586340,-500.0,0.00017999,2]
[398380118,1765559586350,-500.0,0.00017999,2]
[398380119,1765559586359,-285.36200497,0.00017999,2]
[398380121,1765559586368,-40142.66594506,0.00018,2]
[398380122,1765559586398,-413.05725231,0.00018,2]
[398380123,1765559586415,-1845.37193688,0.00018,2]
[398380135,1765559587660,821.36789732,7.533e-05,2]
[398380136,1765559587683,1080.83210268,7.533e-05,2]
[398380137,1765559587746,1902.2,7.929e-05,2]
[398380138,1765559587775,741.52237165,8.326e-05,2]
[398380139,1765559587797,1160.67762835,8.326e-05,2]
[398380140,1765559587851,1902.2,8.722e-05,2]
[398380141,1765559587899,661.67684598,9.119e-05,2]
[398380142,1765559587921,1240.52315402,9.119e-05,2]
[398380143,1765559587976,1902.2,9.515e-05,2]
[398380144,1765559588024,581.83132031,9.912e-05,2]
[398380145,1765559588047,1320.36867969,9.912e-05,2]
[398380146,1765559588119,1902.2,0.00010308,2]
[398380147,1765559588150,501.98579464,0.00010705,2]
[398380148,1765559588173,1400.21420536,0.00010705,2]
[398380149,1765559588204,1902.2,0.00011101,2]
[398380150,1765559588236,422.14026897,0.00011498,2]
[398380151,1765559588259,1480.05973103,0.00011498,2]
[398380152,1765559588295,1902.2,0.00011894,2]
[398380153,1765559588336,342.2947433,0.00012291,2]
[398380154,1765559588365,1559.9052567,0.00012291,2]
[398380155,1765559588437,1902.2,0.00012687,2]
[398380156,1765559588480,1902.2,0.00013083,2]
[398380157,1765559588530,1902.2,0.0001348,2]
[398380158,1765559588603,1902.2,0.00013876,2]
[398380159,1765559588647,1902.2,0.00014273,2]
[398380160,1765559588689,1902.2,0.00014669,2]
[398380161,1765559588733,1902.2,0.00015066,2]
[398380162,1765559590163,166.66,0.00013699,2]
[398380163,1765559590222,166.66,0.00013836,2]
[398380164,1765559590260,166.66,0.00013973,2]
[398380165,1765559590359,166.66,0.0001411,2]
[398380166,1765559590396,166.66,0.00014247,2]
[398380167,1765559590430,166.66,0.00014384,2]
[398380168,1765559594365,-151.0,0.00032877,31]
[398380169,1765559594408,-458.530196,0.00032877,31]
[398380170,1765559594450,-458.530196,0.00032877,31]
[398380171,1765559594490,-160.860677,0.00032877,31]
[398380172,1765559594532,-184.493802,0.00032877,31]
[398380173,1765559594574,-458.530196,0.00032877,31]
[398380174,1765559594616,-184.493802,0.00032877,31]
[398380175,1765559594655,-458.530196,0.00032877,31]
[398380176,1765559594695,-184.493802,0.00032877,31]
[398380177,1765559594733,-458.530196,0.00032877,31]
[398380178,1765559594770,-184.493802,0.00032877,31]
[398380179,1765559594807,-458.530196,0.00032877,31]
[398380180,1765559594848,-184.493802,0.00032877,31]
[398380181,1765559594884,-458.530196,0.00032877,31]
[398380182,1765559594920,-184.493802,0.00032877,31]
[398380183,1765559594958,-458.530196,0.00032877,31]
[398380184,1765559594997,-184.493802,0.00032877,31]
[398380185,1765559595034,-458.530196,0.00032877,31]
[398380186,1765559595072,-184.493802,0.00032877,31]
[398380187,1765559595110,-458.530196,0.00032877,31]
[398380188,1765559595150,-458.530196,0.00032877,31]
[398380189,1765559595193,-184.493802,0.00032877,31]
[398380190,1765559595234,-458.530196,0.00032877,31]
[398380191,1765559595272,-184.493802,0.00032877,31]
[398380192,1765559595312,-458.530196,0.00032877,31]
[398380193,1765559595352,-151.0,0.00032877,31]
[398380194,1765559595392,-184.49381,0.00032877,31]
[398380195,1765559595432,-458.530196,0.00032877,31]
[398380196,1765559595471,-151.0,0.00032877,31]
[398380197,1765559595508,-458.530196,0.00032877,31]
[398380198,1765559595546,-151.0,0.00032877,31]
[398380199,1765559595585,-458.530196,0.00032877,31]
[398380200,1765559595623,-151.0,0.00032877,31]
[398380201,1765559595668,-151.0,0.00032877,31]
[398380202,1765559595706,-458.530196,0.00032877,31]
[398380203,1765559595744,-151.0,0.00032877,31]
[398380204,1765559595783,-458.530196,0.00032877,31]
[398380205,1765559595821,-151.0,0.00032877,31]
[398380206,1765559595858,-458.530196,0.00032877,31]
[398380207,1765559595896,-151.0,0.00032877,31]
[398380208,1765559595934,-458.530197,0.00032877,31]
[398380209,1765559595973,-151.0,0.00032877,31]
[398380210,1765559596014,-151.0,0.00032877,31]
[398380211,1765559596053,-151.0,0.00032877,31]
[398380212,1765559596092,-151.0,0.00032877,31]
[398380213,1765559596139,-151.0,0.00032877,31]
[398380214,1765559596188,-151.0,0.00032877,31]
[398380215,1765559596236,-151.0,0.00032877,31]
[398380216,1765559596276,-151.0,0.00032877,31]
[398380217,1765559596318,-183.537111,0.00032877,31]
[398380218,1765559596361,-151.0,0.00032877,31]
[398380219,1765559596403,-151.0,0.00032877,31]
[398380220,1765559596445,-151.0,0.00032877,31]
[398380221,1765559596488,-151.0,0.00032877,31]
[398380222,1765559596540,-151.0,0.00032877,31]
[398380223,1765559596589,-151.0,0.00032877,31]
[398380224,1765559596633,-153.305847,0.00032877,31]
[398380225,1765559596675,-209.014045,0.00032877,31]
[398380226,1765559596717,-151.0,0.00032877,31]
[398380227,1765559596760,-151.0,0.00032877,31]
[398380228,1765559596800,-151.0,0.00032877,31]
[398380229,1765559596843,-151.0,0.00032877,31]
[398380230,1765559596883,-286.201472,0.00032877,31]
[398380231,1765559596921,-151.0,0.00032877,31]
[398380232,1765559596962,-151.0,0.00032877,31]
[398380233,1765559597002,-201.523594,0.00032877,31]
[398380234,1765559597055,-620.9,0.00038356,30]
[398380235,1765559597095,-500.0,0.00038356,30]
[398380236,1765559597137,-535.27077338,0.00038356,30]
[398380237,1765559597182,-500.0,0.00038356,30]
[398380238,1765559597226,-500.0,0.00038356,30]
[398380239,1765559597266,-500.0,0.00038356,30]
[398380240,1765559597610,-500.0,0.00038356,30]
[398380241,1765559597672,-500.0,0.00038356,30]
[398380242,1765559597714,-520.84658913,0.00038356,30]
[398380243,1765559597750,-500.0,0.00038356,30]
[398380244,1765559597786,-500.0,0.00038356,30]
[398380245,1765559597821,-608.88712261,0.00038356,30]
[398380246,1765559597860,-500.0,0.00038356,30]
[398380247,1765559597899,-500.0,0.00038356,30]
[398380248,1765559597938,-500.0,0.00038356,30]
[398380249,1765559597991,-500.0,0.00038356,30]
[398380250,1765559598038,-500.0,0.00038356,30]
[398380251,1765559598080,-500.0,0.00038356,30]
[398380252,1765559598122,-642.19,0.00038356,30]
[398380253,1765559598164,-500.0,0.00038356,30]
[398380254,1765559598208,-500.0,0.00038356,30]
[398380255,1765559598253,-500.0,0.00038356,30]
[398380256,1765559598295,-500.0,0.00038356,30]
[398380257,1765559598338,-500.0,0.00038356,30]
[398380258,1765559598380,-500.0,0.00038356,30]
[398380259,1765559598423,-500.0,0.00038356,30]
[398380260,1765559598465,-500.0,0.00038356,30]
[398380261,1765559598511,-500.0,0.00038356,30]
[398380262,1765559598550,-500.0,0.00038356,30]
[398380263,1765559598591,-500.0,0.00038356,30]
[398380264,1765559598632,-500.0,0.00038356,30]
[398380265,1765559598676,-500.0,0.00038356,30]
[398380266,1765559598718,-500.0,0.00038356,30]
[398380267,1765559598759,-500.0,0.00038356,30]
[398380268,1765559598800,-500.0,0.00038356,30]
[398380269,1765559598840,-500.0,0.00038356,30]
[398380270,1765559598882,-500.0,0.00038356,30]
[398380271,1765559598922,-500.0,0.00038356,30]
[398380272,1765559598961,-500.0,0.00038356,30]
[398380273,1765559599003,-500.0,0.00038356,30]
[398380274,1765559599044,-500.0,0.00038356,30]
[398380275,1765559599085,-500.0,0.00038356,30]
[398380276,1765559599127,-500.0,0.00038356,30]
[398380277,1765559599169,-500.0,0.00038356,30]
[398380278,1765559599212,-500.0,0.00038356,30]
[398380279,1765559599253,-500.0,0.00038356,30]
[398380280,1765559599293,-974.75,0.00038356,30]
[398380281,1765559599333,-500.0,0.00038356,30]
[398380282,1765559599378,-500.0,0.00038356,30]
[398380283,1765559599421,-500.0,0.00038356,30]
[398380284,1765559599462,-561.38,0.00038356,30]
[398380285,1765559599503,-507.61,0.00038356,30]
[398380286,1765559599545,-500.0,0.00038356,30]
[398380287,1765559599586,-500.0,0.00038356,30]
[398380288,1765559599627,-500.0,0.00038356,30]
[398380289,1765559599666,-500.0,0.00038356,30]
[398380290,1765559599704,-500.0,0.00038356,30]
[398380291,1765559599743,-500.0,0.00038356,30]
[398380292,1765559599780,-500.0,0.00038356,30]
[398380293,1765559599818,-500.0,0.00038356,30]
[398380294,1765559599856,-500.0,0.00038356,30]
[398380295,1765559599895,-500.0,0.00038356,30]
[398380296,1765559599941,-500.0,0.00038356,30]
[398380297,1765559599993,-356.66505475,0.00038356,30]
[398380298,1765559600042,-500.0,0.00038356,30]
[398380299,1765559600091,-500.0,0.00038356,30]
[398380300,1765559600133,-500.0,0.00038356,30]
[398380301,1765559600175,-500.0,0.00038356,30]
[398380302,1765559600217,-500.0,0.00038356,30]
[398380303,1765559600259,-500.0,0.00038356,30]
[398380304,1765559600298,-507.19840042,0.00038356,30]
[398380305,1765559600337,-500.0,0.00038356,30]
[398380306,1765559600377,-512.36,0.00038356,30]
[398380307,1765559600415,-500.0,0.00038356,30]
[398380308,1765559600518,-500.0,0.00038356,30]
[398380309,1765559600557,-500.0,0.00038356,30]
[398380310,1765559600593,-500.0,0.00038356,30]
[398380311,1765559600627,-500.0,0.00038356,30]
[398380312,1765559600663,-500.0,0.00038356,30]
[398380313,1765559600697,-500.0,0.00038356,30]
[398380314,1765559600732,-834.91,0.00038356,30]
[398380315,1765559600766,-500.0,0.00038356,30]
[398380316,1765559600800,-500.0,0.00038356,30]
[398380317,1765559600836,-500.0,0.00038356,30]
[398380318,1765559600873,-216.20445226,0.00038356,30]
[398380319,1765559600909,-500.0,0.00038356,30]
[398380320,1765559600948,-500.0,0.00038356,30]
[398380321,1765559600986,-500.0,0.00038356,30]
[398380322,1765559601022,-500.0,0.00038356,30]
[398380323,1765559601055,-500.0,0.00038356,30]
[398380324,1765559601088,-350.0,0.00038356,30]
[398380325,1765559601125,-620.9,0.0003863,30]
[398380326,1765559601162,-501.96298909,0.0003863,30]
[398380327,1765559601200,-504.07175277,0.0003863,30]
[398380328,1765559601237,-500.0,0.0003863,30]
[398380329,1765559601275,-500.0,0.0003863,30]
[398380330,1765559601313,-500.0,0.0003863,30]
[398380331,1765559601355,-179.25035977,0.0003863,30]
[398380332,1765559601403,-500.0,0.0003863,30]
[398380333,1765559601446,-470.0,0.0003863,30]
[398380334,1765559601486,-500.0,0.0003863,30]
[398380335,1765559601523,-500.0,0.0003863,30]
[398380336,1765559601560,-642.19,0.0003863,30]